bitfinex/quotes_ETHUSD_20241103
["timestamp","ask_amount","ask_price","bid_price","bid_amount"]
[1730601535007,8.02,2449.9,2449.8,0.0598231]
[1730601535177,22.36749576,2449.9,2449.8,0.0598231]
[1730601535392,5.0,2449.3,2448.6,10.0598231]
[1730601535575,4.54391517,2449.8,2448.6,10.0598231]
[1730601535576,5.0,2449.0,2448.6,10.0598231]
[1730601535776,16.324,2449.6,2448.6,10.0598231]
[1730601535777,5.0,2449.3,2448.6,10.0598231]
[1730601536282,5.0,2449.3,2448.9,4.08338]
[1730601536467,5.0,2449.3,2448.7,4.03379]
[1730601536668,5.0,2449.3,2448.7,4.08377]
[1730601536868,5.0,2449.3,2448.6,10.0598231]
[1730601537170,5.0,2449.3,2448.7,4.0837]
[1730601537372,5.0,2449.3,2448.9,8.16677]
[1730601537669,5.0,2448.7,2448.6,10.0598231]
[1730601537865,13.1611,2448.7,2448.6,10.0598231]
[1730601538116,8.1611,2448.7,2448.6,14.1437831]
[1730601538272,8.1611,2448.7,2448.6,15.96657341]
[1730601538469,8.1611,2448.7,2448.6,14.1437831]
[1730601539198,7.9142716,2448.7,2448.6,17.1537831]
[1730601539812,7.9142716,2448.7,2448.6,17.1437831]
[1730601539969,7.9142716,2448.7,2448.6,17.1537831]
[1730601540168,7.9142716,2448.7,2448.6,18.7242831]
[1730601540372,7.9142716,2448.7,2448.6,21.46051493]
[1730601540604,7.9142716,2448.7,2448.6,21.45051493]
[1730601540825,7.9142716,2448.7,2448.6,21.46051493]
[1730601540973,7.9142716,2448.7,2448.6,10.0598231]
[1730601541175,12.9142716,2448.7,2448.6,10.0598231]
[1730601541387,7.9142716,2448.7,2448.6,15.7142831]
[1730601541919,7.9142716,2448.7,2448.6,15.6642831]
[1730601542068,7.9142716,2448.7,2448.6,14.0937831]
[1730601542272,7.9142716,2448.7,2448.6,10.0098231]
[1730601542473,7.9142716,2448.7,2448.6,21.57968058]
[1730601543107,7.9142716,2448.7,2448.6,21.56968058]
[1730601543308,7.9142716,2448.7,2448.6,21.57968058]
[1730601543481,7.9142716,2448.7,2448.6,24.56968058]
[1730601543690,7.9142716,2448.7,2448.6,15.6163831]
[1730601544018,7.9142716,2448.7,2448.6,14.0937831]
[1730601544620,7.9142716,2448.7,2448.6,10.0098231]
[1730601544789,7.9142716,2448.7,2448.6,18.63769827]
[1730601545927,5.0,2449.7,2449.6,4.08229]
[1730601546085,5.0,2450.1,2449.7,4.0821]
[1730601546505,5.0,2450.1,2449.6,4.08229]
[1730601546884,5.0,2450.1,2449.8,4.08195]
[1730601547112,5.0,2450.1,2449.3,4.16439431]
[1730601547113,5.0,2450.4,2449.5,6.06651517]
[1730601547458,0.01,2451.2,2449.5,6.06651517]
[1730601547459,5.0,2450.7,2449.8,4.54391517]
[1730601547583,2.10883733,2451.3,2450.6,4.08061]
[1730601547584,5.0,2451.1,2450.6,4.08061]
[1730601547778,5.0,2451.1,2450.8,4.08016]
[1730601547977,1.634137,2451.3,2451.0,4.07996]
[1730601548284,0.63871699,2451.4,2451.3,4.07946]
[1730601549110,5.0,2451.7,2451.4,4.07919]
[1730601549278,5.0,2451.7,2451.5,4.07902]
[1730601549478,5.0,2451.7,2451.4,4.07919]
[1730601549677,5.0,2451.7,2451.2,4.07953]
[1730601549882,5.0,2451.7,2451.0,4.54391517]
[1730601549883,0.47470033,2451.9,2451.0,4.54391517]
[1730601550079,5.0,2452.0,2451.7,4.0788]
[1730601550300,5.0,2452.0,2451.3,4.54391517]
[1730601550301,1.633171,2452.8,2451.9,8.15682]
[1730601550302,5.0,2452.3,2451.9,8.15682]
[1730601550496,5.0,2452.3,2451.4,4.0793]
[1730601550497,5.0,2452.6,2452.1,4.07801]
[1730601550754,0.01,2453.2,2452.4,4.0776]
[1730601550755,13.18,2452.9,2452.4,4.0776]
[1730601550907,13.18,2452.9,2452.1,4.07803]
[1730601551114,13.18,2452.9,2452.4,4.07762]
[1730601551314,13.18,2452.9,2452.4,4.07753]
[1730601551513,5.0,2452.9,2452.5,4.07745]
[1730601551716,2.24393307,2453.4,2452.9,4.0767]
[1730601552002,2.24393307,2453.4,2453.3,4.07614]
[1730601552420,2.24393307,2453.4,2453.3,5.59874]
[1730601552421,0.0598231,2453.4,2453.3,5.59874]
[1730601552640,0.0598231,2453.4,2453.3,8.60874]
[1730601552854,0.0598231,2454.7,2453.7,4.08543]
[1730601553141,0.44470033,2454.4,2454.1,4.07478]
[1730601553497,0.44470033,2454.4,2453.7,4.54391517]
[1730601553498,5.44470033,2454.4,2453.7,8.61928517]
[1730601553699,5.44470033,2454.4,2453.3,5.60864]
[1730601553700,5.44470033,2454.4,2453.5,4.07567]
[1730601553947,5.44470033,2454.4,2453.7,4.07541]
[1730601554465,5.44470033,2454.4,2453.5,4.07573]
[1730601554747,0.44470033,2454.3,2453.5,4.07573]
[1730601554929,5.0,2454.4,2453.5,4.07573]
[1730601555325,5.0,2453.6,2452.9,4.07669]
[1730601555513,5.0,2453.6,2452.7,8.15407]
[1730601555710,5.0,2453.6,2452.7,4.07701]
[1730601555957,5.0,2453.6,2452.9,4.07676]
[1730601556467,8.166,2454.0,2453.2,4.07617]
[1730601556468,5.0,2453.9,2453.2,4.07617]
[1730601557128,8.166,2454.0,2452.6,4.07722]
[1730601557129,5.0,2453.6,2452.6,4.07722]
[1730601557449,5.0,2453.6,2452.1,1.5226]
[1730601557450,5.0,2453.2,2452.1,1.5226]
[1730601557633,5.0,2452.9,2451.9,4.07846]
[1730601557830,5.0,2452.9,2452.0,0.08155442]
[1730601558012,5.0,2452.9,2452.1,4.07797]
[1730601558217,5.0,2452.9,2451.6,5.61149]
[1730601558218,5.0,2452.6,2451.7,4.07872]
[1730601558421,5.0,2452.3,2451.5,4.07902]
[1730601558617,5.0,2452.3,2451.6,4.0789]
[1730601558921,5.0,2452.3,2451.3,4.07935]
[1730601559344,5.0,2452.3,2451.4,4.0793]
[1730601559535,8.1571,2452.2,2451.2,1.5641]
[1730601559738,8.1571,2452.2,2451.1,4.07969]
[1730601559739,5.0,2452.0,2451.1,4.07969]
[1730601559935,8.1571,2451.9,2451.2,4.0796]
[1730601560724,8.1571,2451.9,2451.1,4.07967]
[1730601561019,8.1571,2451.9,2451.0,5.31654353]
[1730601561020,8.1571,2451.9,2451.2,4.07962]
[1730601561228,8.1571,2451.9,2451.0,4.07989]
[1730601561455,5.0,2451.5,2450.5,4.08065]
[1730601561951,8.1571,2451.4,2450.5,4.08065]
[1730601562269,8.1571,2451.4,2450.1,4.08144]
[1730601562270,5.0,2451.1,2450.1,4.08144]
[1730601562493,5.0,2451.1,2450.2,0.08161452]
[1730601562619,5.0,2451.1,2450.2,9.39783353]
[1730601562812,5.0,2451.1,2450.3,4.08101]
[1730601563220,5.0,2451.1,2450.4,0.08161085]
[1730601563421,5.0,2451.1,2450.5,4.08075]
[1730601564056,8.1571,2451.4,2450.9,4.08011]
[1730601564057,13.1571,2451.4,2450.9,4.08011]
[1730601564571,8.1571,2451.4,2451.0,4.07996]
[1730601564953,8.1571,2451.4,2451.3,4.07946]
[1730601565467,8.1571,2451.4,2451.0,4.07988]
[1730601565625,8.1571,2451.4,2451.0,4.07986]
[1730601565958,8.1571,2451.4,2450.4,5.64496]
[1730601565959,5.0,2451.3,2450.4,5.64496]
[1730601566319,5.0,2451.3,2450.4,1.5641]
[1730601566521,5.0,2451.0,2450.2,9.39773353]
[1730601567118,5.0,2451.3,2450.2,5.31654353]
[1730601567344,5.0,2451.0,2450.3,4.08113]
[1730601567544,5.0,2451.0,2450.3,4.08103]
[1730601567853,5.0,2451.0,2450.3,8.16205]
[1730601568038,5.0,2451.0,2450.4,4.08096]
[1730601568233,5.0,2451.0,2450.3,4.08102]
[1730601568432,5.0,2451.0,2450.3,8.16204]
[1730601568644,5.0,2451.0,2450.4,4.08086]
[1730601569195,5.0,2451.0,2450.6,4.08048]
[1730601569557,5.0,2451.0,2450.4,4.08086]
[1730601569751,5.0,2451.0,2450.0,5.64569]
[1730601569983,5.0,2451.0,2449.8,5.37636663]
[1730601570166,8.1571,2450.9,2449.8,5.37636663]
[1730601570377,8.1571,2450.9,2450.3,4.0811]
[1730601570580,8.1571,2450.9,2450.3,0.08161863]
[1730601570811,8.1571,2450.9,2450.7,4.08033]
[1730601571015,8.1571,2450.9,2450.8,4.0803]
[1730601571517,8.1571,2450.9,2450.8,7.0903]
[1730601571719,8.1571,2450.9,2450.8,8.6644]
[1730601572296,8.1571,2450.9,2450.8,8.6444]
[1730601572492,8.1571,2450.9,2450.8,8.6544]
[1730601574512,8.1571,2450.9,2450.7,4.08033]
[1730601574804,8.1571,2450.9,2450.5,8.16141]
[1730601575097,8.1571,2450.9,2450.8,4.0803]
[1730601575676,8.1571,2450.9,2450.8,5.6444]
[1730601575862,8.1571,2450.9,2450.8,7.14953935]
[1730601576063,8.1571,2450.9,2450.8,10.24113411]
[1730601576296,8.1571,2450.9,2450.8,8.6444]
[1730601576609,8.1571,2450.9,2450.8,4.0803]
[1730601576813,8.1571,2450.9,2450.4,4.5641]
[1730601576814,13.1571,2450.9,2449.8,9.46829663]
[1730601577111,13.1571,2450.9,2450.4,4.08082]
[1730601577471,13.1571,2450.9,2450.4,8.16169]
[1730601577672,13.1571,2450.9,2450.5,4.08065]
[1730601578108,8.1571,2450.9,2450.7,4.08035]
[1730601578405,8.1571,2450.9,2450.8,4.0803]
[1730601580979,6.62884428,2452.4,2450.8,4.0803]
[1730601580980,1.6448,2452.7,2452.6,4.0773]
[1730601581180,8.29370869,2453.1,2452.7,4.07703]
[1730601581482,3.29370869,2453.1,2453.0,4.07664]
[1730601581685,3.29370869,2453.1,2452.2,4.07797]
[1730601581897,3.29370869,2453.1,2452.8,4.07685]
[1730601582099,3.29370869,2453.1,2452.6,4.07721]
[1730601582319,8.29370869,2453.1,2452.4,4.07753]
[1730601582472,8.29370869,2453.1,2452.3,4.07777]
[1730601582673,8.29370869,2453.1,2452.2,4.07797]
[1730601582910,8.29370869,2453.1,2452.7,4.07699]
[1730601583116,8.29370869,2453.1,2452.6,4.07718]
[1730601583272,3.29370869,2453.1,2452.8,4.07696]
[1730601583479,3.29370869,2453.1,2453.0,4.07664]
[1730601583712,3.29370869,2453.1,2452.8,4.07696]
[1730601583887,3.29370869,2453.1,2452.9,4.07675]
[1730601584087,8.29370869,2453.1,2452.5,4.07742]
[1730601584414,8.29370869,2453.1,2452.3,8.15535]
[1730601584977,8.29370869,2453.1,2452.3,4.07763]
[1730601585184,8.29370869,2453.1,2452.5,4.07746]
[1730601585396,8.29370869,2453.1,2451.9,1.5741]
[1730601585397,1.6448,2452.9,2452.1,4.07805]
[1730601585714,5.0,2452.7,2452.3,4.0777]
[1730601586290,1.6448,2452.9,2452.5,4.07745]
[1730601586680,1.64890869,2453.1,2452.1,4.0781]
[1730601586681,1.64890869,2453.1,2452.7,4.07705]
[1730601587415,1.64890869,2453.1,2452.6,4.0773]
[1730601587615,6.6448,2453.3,2452.6,4.07722]
[1730601587773,6.6448,2453.3,2452.6,8.15438]
[1730601587976,6.6448,2453.3,2452.6,4.07716]
[1730601588416,6.6448,2453.3,2452.4,4.07751]
[1730601588601,1.5902,2452.9,2452.3,4.07779]
[1730601589418,1.5902,2452.9,2452.4,8.15522]
[1730601589714,1.5902,2452.9,2452.4,8.15515]
[1730601589928,1.5902,2452.9,2452.6,4.07718]
[1730601590215,1.5902,2453.2,2452.8,4.07681]
[1730601590912,1.5902,2453.2,2452.9,4.0768]
[1730601591320,1.5902,2453.2,2452.6,4.07719]
[1730601591478,0.29636325,2453.1,2452.4,4.07763]
[1730601591821,0.29636325,2453.1,2452.3,5.31654353]
[1730601591822,1.5902,2453.2,2452.7,4.077]
[1730601592007,0.29636548,2453.1,2452.7,4.077]
[1730601592207,1.5902,2453.2,2452.6,4.07729]
[1730601592387,0.29652494,2453.1,2452.6,4.07729]
[1730601592586,0.29652494,2453.1,2452.0,0.01]
[1730601592587,0.29652494,2453.1,2451.9,6.88364353]
[1730601592817,0.29652494,2453.1,2452.4,4.07749]
[1730601593495,5.0,2453.0,2452.2,4.0778]
[1730601593691,0.29652494,2452.9,2452.3,4.07777]
[1730601594005,0.29652494,2452.9,2452.4,4.07761]
[1730601594214,0.29652494,2452.9,2452.5,4.07743]
[1730601595229,0.29652494,2452.9,2452.6,4.07729]
[1730601595386,1.5902,2453.2,2452.8,4.07697]
[1730601595584,0.2967337,2453.1,2452.8,4.07697]
[1730601595829,0.2967337,2453.0,2452.8,4.07697]
[1730601596130,9.7662,2453.5,2452.6,1.5571]
[1730601596346,0.29674662,2453.4,2452.9,4.07665]
[1730601596481,0.29672292,2453.4,2452.9,4.07665]
[1730601596685,0.29672943,2453.3,2452.9,4.07665]
[1730601596887,0.29672943,2453.2,2452.9,4.07665]
[1730601597086,9.7662,2453.5,2452.9,4.07665]
[1730601597319,0.29674148,2453.4,2452.9,4.07665]
[1730601597633,0.29674148,2453.3,2452.9,4.07665]
[1730601597822,0.29674148,2453.2,2452.9,4.07665]
[1730601597990,1.5902,2453.5,2452.9,8.15335]
[1730601598188,0.29669648,2453.4,2452.9,4.07665]
[1730601598530,1.5902,2453.5,2453.0,0.08152702]
[1730601598828,0.29673079,2453.4,2453.0,4.07662]
[1730601599026,1.5902,2453.5,2453.0,4.07662]
[1730601599183,0.29673589,2453.4,2452.9,4.07669]
[1730601599532,0.29673589,2453.3,2452.9,4.07669]
[1730601599709,0.29673589,2453.2,2452.9,4.07669]
[1730601599890,0.29673589,2453.4,2452.9,4.07669]
[1730601600091,0.29685698,2453.3,2452.9,4.07669]
[1730601600346,0.29685698,2453.2,2452.9,8.15338]
[1730601600491,0.29699708,2453.2,2452.9,4.07669]
[1730601600806,1.5902,2453.0,2452.2,4.07784]
[1730601601243,1.5902,2453.0,2451.8,4.07863]
[1730601601244,1.5902,2452.7,2451.8,4.07863]
[1730601601401,1.5902,2452.7,2452.0,4.07829]
[1730601601605,1.5902,2452.7,2451.8,4.07853]
[1730601601946,1.5902,2452.4,2451.6,4.07888]
[1730601602223,1.5902,2452.4,2451.5,4.07903]
[1730601602428,5.0,2452.2,2451.3,4.07936]
[1730601602614,1.5004,2452.1,2451.3,4.07936]
[1730601602817,1.5004,2452.1,2451.4,4.0793]
[1730601603131,5.0,2451.9,2450.9,4.08001]
[1730601603296,5.0,2451.6,2450.5,5.64497]
[1730601603494,5.0,2451.3,2450.5,4.08064]
[1730601603934,1.5004,2451.2,2450.3,4.08101]
[1730601604127,5.0,2450.9,2450.2,4.08129]
[1730601604335,5.0,2450.9,2450.1,4.08133]
[1730601604546,5.0,2450.9,2450.3,4.08104]
[1730601604832,5.0,2450.9,2450.3,4.08103]
[1730601605191,5.0,2450.9,2450.4,4.08096]
[1730601605391,5.0,2450.9,2450.3,4.08103]
[1730601605699,5.0,2450.9,2450.0,4.08162]
[1730601605700,1.5004,2450.8,2450.0,4.08162]
[1730601606001,1.5004,2450.8,2450.2,4.08128]
[1730601606530,1.5004,2450.8,2450.1,4.08137]
[1730601606692,1.5004,2450.8,2450.1,4.08136]
[1730601607027,1.5004,2450.8,2450.2,4.08127]
[1730601607597,1.5004,2450.8,2450.1,4.08136]
[1730601608004,1.5004,2450.8,2450.1,8.16273]
[1730601608205,5.0,2450.6,2449.8,0.0598231]
[1730601608412,5.0,2450.3,2449.8,0.0598231]
[1730601608618,5.0,2450.3,2449.8,4.1416231]
[1730601609089,5.0,2450.3,2449.8,0.0598231]
[1730601609292,1.5004,2450.2,2449.8,0.0598231]
[1730601610090,5.0,2450.0,2449.8,0.0598231]
[1730601610545,1.5004,2449.9,2449.8,0.0598231]
[1730601613708,9.6764,2449.9,2449.8,0.0598231]
[1730601613909,9.6864,2449.9,2449.8,0.0598231]
[1730601614328,9.6764,2449.9,2449.8,0.0598231]
[1730601617550,17.8402,2449.9,2449.8,0.0598231]
[1730601619156,8.1638,2449.9,2449.8,0.0598231]
[1730601624268,13.1638,2449.9,2449.8,0.0598231]
[1730601624778,14.8243,2449.9,2449.8,0.0598231]
[1730601625459,17.8343,2449.9,2449.8,0.0598231]
[1730601625664,21.91609,2449.9,2449.8,0.0598231]
[1730601626437,1.6605,2448.9,2448.1,4.08467]
[1730601626753,1.6605,2448.9,2448.0,5.76285289]
[1730601626968,5.0,2449.0,2448.5,4.08408]
[1730601627130,5.0,2449.0,2448.4,4.08419]
[1730601627323,5.0,2449.0,2448.2,4.08452]
[1730601627576,10.0,2449.0,2448.2,4.08452]
[1730601627877,8.1638,2448.9,2448.2,4.08452]
[1730601628230,8.1638,2448.9,2448.3,4.08446]
[1730601628433,6.6805,2448.7,2448.6,6.07583562]
[1730601628634,12.0948,2448.1,2448.0,4.11415289]
[1730601628941,12.0948,2448.1,2448.0,3.28442571]
[1730601628942,40.75571184,2448.1,2448.0,3.28442571]
[1730601629160,41.12971184,2448.1,2448.0,2.03295498]
[1730601629352,5.0,2447.4,2447.0,0.002044]
[1730601629546,32.5258,2447.4,2447.0,0.002044]
[1730601629745,32.5258,2447.4,2446.3,4.09216]
[1730601629746,5.0,2447.0,2446.3,4.09216]
[1730601629954,8.1638,2446.9,2446.3,8.17986]
[1730601630187,8.1638,2446.9,2446.3,0.0045]
[1730601630188,5.0,2446.4,2446.3,0.0045]
[1730601630375,27.5358,2446.9,2446.3,0.0045]
[1730601630376,24.5258,2446.9,2446.3,0.0045]
[1730601630709,4.08,2447.4,2446.3,0.0045]
[1730601630710,10.0,2447.3,2446.8,4.08686]
[1730601630864,5.0,2447.3,2446.4,0.01]
[1730601631079,8.1738,2447.2,2447.1,4.08635]
[1730601631278,8.1738,2447.2,2446.3,0.0045]
[1730601631488,8.1738,2447.2,2446.8,4.08683]
[1730601631660,8.1738,2447.2,2446.6,4.08722]
[1730601632153,8.1738,2447.2,2446.6,4.660782]
[1730601632349,8.1738,2447.2,2446.8,4.08696]
[1730601632651,8.1738,2447.2,2446.6,4.0872]
[1730601632853,8.1738,2447.2,2447.0,4.0865]
[1730601633080,8.1738,2447.2,2446.8,4.08691]
[1730601633279,8.1738,2447.2,2446.6,4.08726]
[1730601633789,8.1738,2447.2,2446.6,8.17446]
[1730601634085,8.1738,2447.2,2446.6,4.0872]
[1730601634289,8.1738,2447.2,2446.6,4.66179]
[1730601634499,8.1738,2447.2,2446.8,4.08687]
[1730601634652,8.1738,2447.2,2446.8,8.17373]
[1730601634853,8.1738,2447.2,2446.6,0.57459]
[1730601634854,8.1738,2447.2,2447.0,4.0866]
[1730601635086,8.1738,2447.2,2447.1,8.73516]
[1730601635298,8.1738,2447.2,2447.1,10.028336]
[1730601635451,8.1738,2447.2,2447.1,1.6487]
[1730601635651,8.1738,2447.2,2446.8,8.1738]
[1730601635884,8.1738,2447.2,2446.8,4.08686]
[1730601636102,8.1738,2447.2,2446.9,4.08673]
[1730601636260,8.1738,2447.2,2446.8,4.08686]
[1730601636464,8.1738,2447.2,2446.7,1.6487]
[1730601636792,8.1738,2447.2,2446.6,4.0872]
[1730601637293,8.1738,2447.2,2446.8,4.08682]
[1730601637477,8.1738,2447.2,2446.6,8.17441]
[1730601637652,8.1738,2447.2,2446.7,4.08713]
[1730601637859,8.1738,2447.2,2446.8,4.08696]
[1730601638060,8.1738,2447.2,2446.6,4.0872]
[1730601638061,8.1738,2447.2,2446.6,8.17436]
[1730601638396,8.1738,2447.2,2446.8,4.08694]
[1730601638695,8.1738,2447.2,2446.7,4.08711]
[1730601639100,13.1738,2447.2,2446.4,1.6487]
[1730601639257,13.1738,2447.2,2446.6,4.08714]
[1730601639460,8.1738,2447.2,2446.8,4.08687]
[1730601639861,8.1738,2447.2,2447.0,4.08654]
[1730601640111,8.1738,2447.2,2446.8,4.495557]
[1730601640273,8.1738,2447.2,2446.6,4.08721]
[1730601640597,8.1738,2447.2,2446.6,4.08719]
[1730601640810,5.0,2447.1,2446.4,1.6487]
[1730601640961,8.1738,2447.0,2446.3,0.0045]
[1730601641572,8.1738,2447.0,2446.3,4.17404773]
[1730601641793,8.1738,2447.0,2446.4,4.08761]
[1730601642004,8.1738,2447.0,2446.3,0.0045]
[1730601642166,8.1738,2447.0,2446.3,4.17394773]
[1730601642372,5.0,2446.7,2446.3,0.0045]
[1730601642683,8.1738,2446.6,2446.3,0.0045]
[1730601643682,8.1738,2446.6,2446.5,7.08747]
[1730601644058,8.1738,2446.6,2446.5,8.75617]
[1730601644267,8.1738,2446.6,2446.5,8.74617]
[1730601644883,5.0,2447.6,2446.5,4.6687]
[1730601645206,5.0,2447.6,2447.1,4.08643]
[1730601645369,5.0,2447.6,2447.1,4.495023]
[1730601645573,18.0466,2447.5,2446.7,4.08699]
[1730601645774,18.0466,2447.5,2447.0,4.08654]
[1730601646085,18.0466,2447.5,2447.0,8.17308]
[1730601646086,8.1721,2447.5,2447.0,8.17308]
[1730601646285,8.1721,2447.5,2447.2,4.0862]
[1730601646522,8.1721,2447.5,2447.4,4.08596]
[1730601646829,8.1721,2447.5,2447.4,4.494556]
[1730601646977,8.1721,2447.5,2447.4,6.143256]
[1730601647172,8.1721,2447.5,2447.4,6.153256]
[1730601647416,8.1721,2447.5,2447.4,6.143256]
[1730601647943,8.1721,2447.5,2447.4,5.73466]
[1730601649011,8.1721,2447.5,2447.3,4.08613]
[1730601649310,8.1721,2447.5,2446.9,4.08668]
[1730601649783,8.1721,2447.5,2447.0,4.08653]
[1730601649982,8.1721,2447.5,2446.9,8.17338]
[1730601650296,8.1721,2447.5,2447.0,4.08648]
[1730601650890,8.1721,2447.5,2447.1,4.08638]
[1730601651703,8.1721,2447.5,2447.0,4.08657]
[1730601651876,8.1721,2447.5,2447.4,4.08596]
[1730601652084,8.1721,2447.5,2447.0,0.8990572]
[1730601652085,8.1721,2447.5,2447.1,4.08631]
[1730601652282,8.1721,2447.5,2446.9,4.08671]
[1730601652933,8.1721,2447.5,2446.7,9.75699]
[1730601653097,8.1721,2447.5,2446.7,5.66997]
[1730601653414,8.1721,2447.5,2446.6,4.08729]
[1730601653415,6.6081,2447.4,2446.6,4.08729]
[1730601653581,8.1721,2447.3,2446.6,4.08729]
[1730601653981,5.0,2447.1,2446.3,7.25579731]
[1730601654224,8.1721,2447.0,2446.3,0.0045]
[1730601654512,8.1721,2447.0,2446.4,4.08753]
[1730601654823,5.0,2446.8,2446.3,0.0045]
[1730601654986,5.0,2446.5,2446.3,0.0045]
[1730601655381,9.7802,2446.4,2446.3,0.0045]
[1730601656719,13.07605719,2446.4,2446.3,0.0045]
[1730601656889,13.08605719,2446.4,2446.3,0.0045]
[1730601657090,13.07603659,2446.4,2446.3,0.0045]
[1730601657295,10.07603659,2446.4,2446.3,0.0045]
[1730601657587,9.7802,2446.4,2446.3,0.0045]
[1730601658724,8.1721,2446.4,2446.3,0.0045]
[1730601661513,8.1721,2446.4,2446.2,0.005]
[1730601661743,13.1721,2446.4,2446.2,0.005]
[1730601661945,13.1721,2446.4,2446.2,1.01148231]
[1730601662113,13.1721,2446.4,2446.3,4.0878]
[1730601662311,13.1721,2446.4,2446.2,9.18720231]
[1730601662511,8.1721,2446.4,2446.3,4.0878]
[1730601663236,8.1721,2446.4,2446.3,5.6708]
[1730601663411,8.1721,2446.4,2446.3,7.75479554]
[1730601663955,8.1721,2446.4,2446.2,5.09933231]
[1730601663956,8.1721,2446.4,2446.2,0.005]
[1730601664310,13.1721,2446.4,2446.2,0.005]
[1730601665017,25.300962,2446.3,2446.2,0.005]
[1730601665214,33.473062,2446.3,2446.2,0.005]
[1730601665511,34.375262,2446.3,2446.2,0.005]
[1730601665716,38.463062,2446.3,2446.2,0.005]
[1730601666337,38.463062,2446.3,2444.9,0.0598231]
[1730601666338,5.0,2445.0,2444.9,0.0598231]
[1730601666537,32.5661,2445.0,2444.9,0.0598231]
[1730601666747,32.87215253,2445.0,2444.9,0.0598231]
[1730601666944,21.69015253,2445.0,2444.9,0.0598231]
[1730601667146,28.50407,2445.0,2444.9,0.0598231]
[1730601667355,26.20300416,2445.0,2444.9,0.0598231]
[1730601667529,23.19300416,2445.0,2444.9,0.0598231]
[1730601668464,26.20300416,2445.0,2444.9,0.0598231]
[1730601668674,30.29297416,2445.0,2444.9,0.0598231]
[1730601668831,26.20300416,2445.0,2444.9,0.0598231]
[1730601669281,29.99717,2445.0,2444.9,0.0598231]
[1730601669431,30.88585416,2445.0,2444.9,0.0598231]
[1730601669628,35.88584429,2445.0,2444.9,0.0598231]
[1730601670229,31.78587429,2445.0,2444.9,0.0598231]
[1730601670431,35.89584429,2445.0,2444.9,0.0598231]
[1730601671733,4.11031,2444.8,2444.7,0.005]
[1730601672085,19.65611742,2444.8,2444.7,0.005]
[1730601672541,23.75642742,2444.8,2444.7,0.005]
[1730601672882,21.15921742,2444.8,2444.7,0.005]
[1730601673075,21.15915836,2444.8,2444.7,0.005]
[1730601673258,21.14915836,2444.8,2444.7,0.005]
[1730601673440,18.14915836,2444.8,2444.7,0.005]
[1730601673640,23.16915836,2444.8,2444.7,0.005]
[1730601673941,23.15915836,2444.8,2444.7,0.005]
[1730601674556,21.15915836,2444.8,2444.7,0.005]
[1730601674759,18.14915836,2444.8,2444.7,0.005]
[1730601674952,8.46805836,2444.8,2444.7,0.005]
[1730601675282,9.6852,2444.8,2444.7,0.005]
[1730601675446,9.98105146,2444.8,2444.7,0.005]
[1730601675961,9.6752,2444.8,2444.7,0.005]
[1730601676134,17.08139584,2444.8,2444.7,0.005]
[1730601676333,17.62502729,2444.8,2444.7,0.005]
[1730601676534,22.62502729,2444.8,2444.7,0.005]
[1730601677476,8.01,2444.2,2444.0,0.1]
[1730601677681,36.96929584,2444.2,2444.0,0.1]
[1730601677854,36.97929584,2444.2,2444.0,0.1]
[1730601678052,29.86798584,2444.2,2444.0,0.1]
[1730601678269,31.1083,2444.2,2444.0,0.1]
[1730601678639,31.0983,2444.2,2444.0,0.1]
[1730601678975,31.0983,2444.2,2444.0,0.07]
[1730601680161,35.18961,2444.2,2444.0,0.07]
[1730601680687,4.09148,2444.1,2444.0,0.07]
[1730601680854,8.71573145,2444.1,2444.0,0.07]
[1730601681176,13.1721,2444.1,2444.0,0.07]
[1730601681543,8.1721,2444.1,2444.0,0.07]
[1730601681772,8.1721,2444.1,2444.0,5.78605]
[1730601682111,8.1721,2444.1,2444.0,6.38433874]
[1730601682287,6.32055419,2444.1,2444.0,6.38433874]
[1730601682662,6.32055419,2444.1,2444.0,6.37433874]
[1730601682915,5.97654929,2444.1,2444.0,9.46615765]
[1730601683101,10.0,2445.5,2445.0,4.08988]
[1730601683268,10.0,2445.5,2444.7,0.02]
[1730601683269,5.0,2445.5,2445.3,4.08947]
[1730601683469,5.0,2445.5,2445.2,1.6244]
[1730601683723,5.0,2445.9,2444.8,1.6244]
[1730601683724,8.1788,2445.4,2444.8,1.6244]
[1730601683923,5.0,2445.3,2444.8,1.6244]
[1730601684072,5.0,2445.0,2444.5,1.6244]
[1730601684409,8.1788,2444.9,2444.1,1.6244]
[1730601684616,5.0,2444.7,2444.1,1.6244]
[1730601684770,8.1788,2444.6,2444.1,1.6244]
[1730601684974,8.1788,2444.6,2444.0,0.07]
[1730601685584,5.0,2444.4,2444.0,0.07]
[1730601685795,8.1788,2444.3,2444.0,0.07]
[1730601686000,8.228,2444.2,2444.0,0.07]
[1730601686200,13.1788,2444.3,2444.0,0.07]
[1730601686201,8.1788,2444.1,2444.0,0.07]
[1730601687009,8.1788,2444.1,2444.0,5.79605]
[1730601687207,8.1788,2444.1,2444.0,1.6944]
[1730601687709,8.1788,2444.1,2444.0,6.49275816]
[1730601688036,8.1788,2444.1,2444.0,2.40110816]
[1730601688404,8.1788,2444.1,2444.0,6.49275816]
[1730601688616,8.1788,2444.1,2444.0,6.50275816]
[1730601688986,8.1788,2444.1,2444.0,2.40110816]
[1730601689234,8.1788,2444.1,2444.0,1.6944]
[1730601689707,8.1788,2444.1,2444.0,5.80605]
[1730601690494,8.1788,2444.1,2444.0,5.88786919]
[1730601690701,8.1788,2444.1,2444.0,5.80605]